bitfinex-derivatives/quotes_BTCF0:USTF0_20241013
["timestamp","ask_amount","ask_price","bid_price","bid_amount"]
[1728824709550,0.21736051,62751.0,62750.0,0.081693]
[1728824713062,0.21736051,62751.0,62750.0,0.29815949]
[1728824715268,0.21236051,62751.0,62750.0,0.29715949]
[1728824715560,0.21736051,62751.0,62750.0,0.18044769]
[1728824715765,0.21736051,62751.0,62750.0,0.10075469]
[1728824716264,0.21736051,62751.0,62750.0,0.27596687]
[1728824716458,0.21736051,62751.0,62750.0,0.28643622]
[1728824718364,0.21736051,62751.0,62750.0,0.19091704]
[1728824718967,0.21736051,62751.0,62750.0,0.1909607]
[1728824719165,0.21736051,62751.0,62750.0,0.18049135]
[1728824719354,0.21736051,62751.0,62750.0,0.19095158]
[1728824719963,0.21736051,62751.0,62750.0,0.19094928]
[1728824720161,0.21736051,62751.0,62750.0,0.09215093]
[1728824724557,0.21736051,62751.0,62750.0,0.081693]
[1728824728170,0.21736051,62751.0,62750.0,0.18047791]
[1728824731573,0.21736051,62751.0,62750.0,0.19094254]
[1728824733068,0.21736051,62751.0,62750.0,0.28644569]
[1728824733271,0.13766951,62751.0,62750.0,0.28644569]
[1728824733469,0.13766951,62751.0,62750.0,0.19094254]
[1728824733881,0.13766951,62751.0,62750.0,0.55174254]
[1728824734880,0.13366951,62751.0,62750.0,0.54974254]
[1728824736082,0.13366951,62751.0,62750.0,0.64522997]
[1728824736377,0.13366951,62751.0,62750.0,0.66198885]
[1728824736778,0.13366951,62751.0,62750.0,0.68450821]
[1728824736971,0.13366951,62751.0,62750.0,0.56650423]
[1728824737172,0.13366951,62751.0,62750.0,0.54974254]
[1728824737382,0.13366951,62751.0,62750.0,0.58643807]
[1728824737678,0.13366951,62751.0,62750.0,0.68941937]
[1728824737877,0.13366951,62751.0,62750.0,0.72131687]
[1728824738178,0.13366951,62751.0,62750.0,0.74125281]
[1728824738376,0.13066951,62751.0,62750.0,0.74125268]
[1728824738680,0.13266951,62751.0,62750.0,0.68941937]
[1728824739074,0.13266951,62751.0,62750.0,0.71035928]
[1728824739390,0.13266951,62751.0,62750.0,0.68941937]
[1728824739572,0.13066951,62751.0,62750.0,0.66218493]
[1728824739771,0.13166951,62751.0,62750.0,0.66218493]
[1728824742282,0.13166951,62751.0,62750.0,0.66176857]
[1728824743183,0.13166951,62751.0,62750.0,0.44547717]
[1728824746479,0.13166951,62751.0,62750.0,0.47263904]
[1728824746672,0.13166951,62751.0,62750.0,0.49257425]
[1728824747976,0.13166951,62751.0,62750.0,0.13177425]
[1728824748182,0.13166951,62751.0,62750.0,0.49257425]
[1728824748996,0.13166951,62751.0,62750.0,0.47263649]
[1728824749182,0.13166951,62751.0,62750.0,0.49257173]
[1728824750185,0.13166951,62751.0,62750.0,0.70879308]
[1728824751688,0.13166951,62751.0,62750.0,0.82634598]
[1728824751993,0.003,62751.0,62750.0,0.70876748]
[1728824752585,0.02836369,62760.0,62750.0,0.70876748]
[1728824752586,0.079682,62759.0,62758.0,0.079682]
[1728824752878,0.20835151,62759.0,62758.0,0.17831317]
[1728824753679,0.21335151,62759.0,62758.0,0.25872915]
[1728824753877,0.21735151,62759.0,62758.0,0.25972915]
[1728824754085,0.21735151,62759.0,62758.0,0.16109798]
[1728824756786,0.21735151,62759.0,62758.0,0.25971902]
[1728824757193,0.21735151,62759.0,62758.0,0.16109798]
[1728824757393,0.21735151,62759.0,62758.0,0.25972147]
[1728824758184,0.21735151,62759.0,62758.0,0.081682]
[1728824760287,0.2630349,62759.0,62758.0,0.081682]
[1728824760688,0.26303265,62759.0,62758.0,0.081682]
[1728824762597,0.26303265,62759.0,62758.0,0.002]
[1728824762805,0.62383265,62759.0,62758.0,0.002]
[1728824763093,0.159366,62758.0,62748.0,0.02936385]
[1728824763298,0.20836651,62747.0,62746.0,0.442458]
[1728824763495,0.20836651,62747.0,62746.0,0.440498]
[1728824765293,0.20836651,62747.0,62746.0,0.63518986]
[1728824765704,0.20836651,62747.0,62746.0,0.63818986]
[1728824765890,0.12866951,62747.0,62746.0,0.63818986]
[1728824767099,0.12866951,62747.0,62746.0,0.54489043]
[1728824767399,0.12866951,62747.0,62746.0,0.54987489]
[1728824767604,0.0332,62756.0,62755.0,0.079686]
[1728824767807,0.0332,62756.0,62755.0,0.53979208]
[1728824767808,0.112885,62756.0,62755.0,0.53979208]
[1728824768099,0.16186951,62756.0,62755.0,0.53979208]
[1728824768790,0.16186951,62756.0,62755.0,0.55123385]
[1728824768995,0.16586951,62756.0,62755.0,0.55123385]
[1728824769196,0.16986951,62756.0,62755.0,0.54049452]
[1728824769396,0.16986951,62756.0,62755.0,0.55093584]
[1728824770007,0.16986951,62756.0,62755.0,0.19013584]
[1728824770699,0.24955451,62756.0,62755.0,0.19013584]
[1728824771002,0.24955451,62756.0,62755.0,0.09112732]
[1728824773193,0.16986951,62756.0,62755.0,0.09112732]
[1728824773393,0.13666951,62756.0,62755.0,0.09112732]
[1728824773593,0.13666951,62756.0,62755.0,0.080686]
[1728824773806,0.008,62756.0,62755.0,0.12732133]
[1728824774309,0.008,62756.0,62755.0,0.111886]
[1728824774502,0.008,62756.0,62755.0,0.12732216]
[1728824774699,0.008,62756.0,62755.0,0.64200014]
[1728824775099,0.0332,62772.0,62755.0,1.24200014]
[1728824775303,0.079668,62770.0,62769.0,0.079667]
[1728824775500,0.17422325,62770.0,62769.0,0.079667]
[1728824776203,0.20833651,62770.0,62769.0,0.079667]
[1728824776913,0.21233651,62770.0,62769.0,0.080667]
[1728824777413,0.13266951,62770.0,62769.0,0.080667]
[1728824777908,0.13266951,62770.0,62769.0,0.441467]
[1728824778099,0.13266951,62770.0,62769.0,0.442467]
[1728824778301,0.13266951,62770.0,62769.0,0.44744968]
[1728824778516,0.13266951,62770.0,62769.0,0.47637469]
[1728824778517,0.12866951,62770.0,62769.0,0.47637469]
[1728824778806,0.440457,62779.0,62778.0,0.079657]
[1728824779308,0.48946951,62779.0,62770.0,0.0324]
[1728824779505,0.12866951,62772.0,62771.0,0.08464835]
[1728824780403,0.12866951,62772.0,62771.0,0.079666]
[1728824781513,0.20833451,62772.0,62771.0,0.079666]
[1728824782016,0.20933451,62772.0,62771.0,0.079666]
[1728824782512,0.12966951,62772.0,62771.0,0.079666]
[1728824783311,0.12966951,62772.0,62771.0,0.440466]
[1728824783514,0.20933451,62772.0,62771.0,0.440466]
[1728824783711,0.20933451,62772.0,62771.0,0.44544848]
[1728824784710,0.20933451,62772.0,62771.0,0.44744848]
[1728824784912,0.20833451,62772.0,62771.0,0.44744848]
[1728824785118,0.20833451,62772.0,62771.0,0.45144848]
[1728824786910,0.20833451,62772.0,62771.0,0.09064848]
[1728824787106,0.20833451,62772.0,62771.0,0.45144848]
[1728824787612,0.20833451,62772.0,62771.0,0.446466]
[1728824787811,0.20833451,62772.0,62771.0,0.4514486]
[1728824788210,0.20833451,62772.0,62771.0,0.446466]
[1728824788614,0.20833451,62772.0,62771.0,0.45144855]
[1728824788816,0.20833451,62772.0,62771.0,0.446466]
[1728824791945,0.20833451,62772.0,62771.0,0.085666]
[1728824806161,0.20833451,62772.0,62771.0,0.26350792]
[1728824806664,0.20833451,62772.0,62771.0,0.26350774]
[1728824806956,0.20833451,62772.0,62771.0,0.1840697]
[1728824809254,0.12866951,62772.0,62771.0,0.1840697]
[1728824809860,0.12866951,62772.0,62771.0,0.18905221]
[1728824810160,0.12866951,62772.0,62771.0,0.28441648]
[1728824810354,0.17472902,62772.0,62771.0,0.09064851]
[1728824811358,0.17487015,62772.0,62771.0,0.09064851]
[1728824813362,0.17487015,62772.0,62771.0,0.0906483]
[1728824813561,0.17487015,62772.0,62771.0,0.085666]
[1728824813764,0.17487015,62772.0,62771.0,0.4514483]
[1728824816265,0.17487015,62772.0,62771.0,0.0906483]
[1728824816471,0.17487015,62772.0,62771.0,0.4514483]
[1728824818157,0.17487015,62772.0,62771.0,0.446466]
[1728824818356,0.17487015,62772.0,62771.0,0.6669294]
[1728824818357,0.12866951,62772.0,62771.0,0.6669294]
[1728824818568,0.12866951,62772.0,62771.0,0.3061294]
[1728824818866,0.12866951,62772.0,62771.0,0.6669294]
[1728824820270,0.079657,62779.0,62778.0,0.079657]
[1728824820471,0.20832651,62779.0,62778.0,0.17796214]
[1728824821170,0.14335522,62805.0,62778.0,0.17796214]
[1728824821171,0.12066951,62796.0,62780.0,0.079654]
[1728824821364,0.079623,62805.0,62796.0,0.079634]
[1728824821562,0.079623,62805.0,62795.0,0.07929602]
[1728824821563,0.0313,62806.0,62804.0,0.06343613]
[1728824821757,0.110922,62806.0,62805.0,0.06342348]
[1728824821961,0.110922,62806.0,62800.0,0.44009602]
[1728824821962,0.079626,62803.0,62800.0,0.44229602]
[1728824822257,0.0313,62806.0,62804.0,0.079624]
[1728824822258,0.110923,62806.0,62804.0,0.079624]
[1728824822457,0.0313,62806.0,62803.0,0.06334956]
[1728824822657,0.001,62805.0,62802.0,0.06335528]
[1728824822866,0.079627,62803.0,62802.0,0.06335528]
[1728824823078,0.079627,62803.0,62801.0,0.079628]
[1728824823372,0.079627,62802.0,62801.0,0.14293525]
[1728824824271,0.079627,62802.0,62799.0,0.3608]
[1728824824272,0.079629,62800.0,62799.0,0.42410725]
[1728824825065,0.0313,62806.0,62797.0,0.06330725]
[1728824825066,0.079632,62798.0,62797.0,0.06330725]
[1728824825373,0.0313,62806.0,62796.0,0.06330725]
[1728824825374,0.079633,62797.0,62796.0,0.06330725]
[1728824825676,0.079636,62795.0,62794.0,0.079637]
[1728824827071,0.079636,62795.0,62794.0,0.440437]
[1728824827765,0.079636,62795.0,62794.0,0.3608]
[1728824827967,0.079636,62795.0,62794.0,0.3678]
[1728824828271,0.079636,62795.0,62794.0,0.3728]
[1728824831371,0.079636,62795.0,62794.0,0.012]
[1728824831372,0.440436,62795.0,62794.0,0.012]
[1728824831877,1.518196,62795.0,62794.0,0.012]
[1728824832674,1.43856,62795.0,62783.0,0.00238842]
[1728824832872,1.43856,62795.0,62783.0,0.08203842]
[1728824832873,0.07965,62784.0,62783.0,0.08203842]
[1728824833782,0.07965,62784.0,62783.0,0.09603842]
[1728824834476,0.07965,62784.0,62783.0,0.08203842]
[1728824834676,0.08065,62784.0,62783.0,0.11003842]
[1728824835472,0.08065,62784.0,62783.0,0.10303842]
[1728824835679,0.08065,62784.0,62783.0,0.09603842]
[1728824836075,0.08065,62784.0,62783.0,0.01638842]
[1728824836970,0.08065,62784.0,62783.0,0.01338842]
[1728824837169,0.08065,62784.0,62783.0,0.00638842]
[1728824837381,0.08065,62784.0,62783.0,0.01238842]
[1728824837771,0.07965,62784.0,62783.0,0.00738842]
[1728824838076,0.08065,62784.0,62783.0,0.01438842]
[1728824838480,0.07965,62784.0,62783.0,0.00838842]
[1728824840088,0.07965,62784.0,62783.0,0.00338842]
[1728824840877,0.07965,62784.0,62783.0,0.06671954]
[1728824841284,0.07965,62784.0,62783.0,0.00338842]
[1728824841585,0.07965,62784.0,62783.0,0.06672368]
[1728824843182,0.07965,62784.0,62783.0,0.00338842]
[1728824843695,0.07965,62784.0,62783.0,0.06673771]
[1728824844297,0.07965,62784.0,62783.0,0.00338842]
[1728824846390,0.07965,62784.0,62783.0,0.001]
[1728824846584,0.07965,62784.0,62783.0,0.06437369]
[1728824848487,0.07965,62784.0,62783.0,0.001]
[1728824850395,0.08265,62784.0,62783.0,0.001]
[1728824850591,1.08084,62784.0,62770.0,0.0329]
[1728824850791,1.08084,62784.0,62761.0,0.3608]
[1728824850792,0.079669,62769.0,62768.0,0.471269]
[1728824851092,0.079669,62769.0,62768.0,0.3608]
[1728824851994,0.080669,62769.0,62768.0,0.45447]
[1728824852996,0.080669,62769.0,62768.0,0.09367]
[1728824854099,0.080669,62769.0,62768.0,0.10567]
[1728824855188,0.080669,62769.0,62768.0,0.026]
[1728824855500,0.080669,62769.0,62768.0,0.12705688]
[1728824855896,0.080669,62769.0,62768.0,0.20672688]
[1728824856301,0.080669,62769.0,62768.0,0.20672153]
[1728824861201,0.080669,62769.0,62768.0,0.3015938]
[1728824862508,0.080669,62769.0,62768.0,0.15328947]
[1728824863708,0.080669,62769.0,62768.0,0.10567]
[1728824868700,0.080669,62769.0,62768.0,0.16916263]
[1728824869102,0.080669,62769.0,62768.0,0.10567]
[1728824869305,0.080669,62769.0,62768.0,0.16916263]
[1728824870504,0.080669,62769.0,62768.0,0.30179704]
[1728824871707,0.080669,62769.0,62768.0,0.30224453]
[1728824872204,0.080669,62769.0,62768.0,0.30225451]
[1728824875309,0.080669,62769.0,62768.0,0.21738289]
[1728824879201,0.080669,62769.0,62768.0,0.20699057]
[1728824879503,0.080669,62769.0,62768.0,0.33831047]
[1728824879704,0.080669,62769.0,62768.0,0.35824248]
[1728824879905,0.080669,62769.0,62768.0,0.23745092]
[1728824881200,0.080669,62769.0,62768.0,0.3584029]
[1728824881402,0.080669,62769.0,62768.0,0.23745092]
[1728824881705,0.080669,62769.0,62768.0,0.33847929]
[1728824881904,0.080669,62769.0,62768.0,0.35841045]
[1728824883715,0.080669,62769.0,62768.0,0.33849114]
[1728824883913,0.080669,62769.0,62768.0,0.35842195]
[1728824885006,0.080669,62769.0,62768.0,0.35832764]
[1728824885717,0.080669,62769.0,62768.0,0.23743742]
[1728824885909,0.080669,62769.0,62768.0,0.20709123]
[1728824886221,0.080669,62769.0,62768.0,0.21751078]
[1728824887920,0.080669,62769.0,62768.0,0.21750708]
[1728824888717,0.080669,62769.0,62768.0,0.20708753]
[1728824891219,0.080669,62769.0,62768.0,0.21750685]
[1728824892725,0.001,62769.0,62768.0,0.47868722]
[1728824893028,0.080669,62769.0,62768.0,0.47868722]
[1728824893623,0.080669,62769.0,62768.0,0.39901722]
[1728824895626,0.080669,62769.0,62768.0,0.47868722]
[1728824896427,0.080669,62769.0,62768.0,0.33835617]
[1728824896622,0.080669,62769.0,62768.0,0.35828723]
[1728824896823,0.080669,62769.0,62768.0,0.40685095]
[1728824897520,0.080669,62769.0,62768.0,0.37496195]
[1728824898023,0.080669,62769.0,62768.0,0.40685159]
[1728824899025,0.080669,62769.0,62768.0,0.67889551]
[1728824900036,0.080669,62769.0,62768.0,1.03969551]
[1728824901326,0.080669,62769.0,62768.0,0.89988604]
[1728824901831,0.3608,62780.0,62768.0,0.76763765]
[1728824902040,0.3608,62780.0,62779.0,0.079656]
[1728824902226,0.3608,62780.0,62779.0,0.31233732]
[1728824902536,0.0327,62787.0,62779.0,0.23268132]
[1728824902740,0.0327,62787.0,62775.0,0.11141315]
[1728824902741,0.06120694,62786.0,62781.0,0.079653]
[1728824902930,0.06120694,62786.0,62781.0,0.31233432]
[1728824903233,0.08204177,62782.0,62781.0,0.31233432]
[1728824903532,0.08204177,62782.0,62781.0,0.19146086]
[1728824903726,0.08204177,62782.0,62781.0,0.3010085]
[1728824903927,0.08204177,62782.0,62781.0,0.18105388]
[1728824905331,0.08204177,62782.0,62781.0,0.27839995]
[1728824906539,0.08204177,62782.0,62781.0,0.28059246]
[1728824907226,0.08204177,62782.0,62781.0,0.18524639]
[1728824907431,0.08204177,62782.0,62781.0,0.28059246]
[1728824907633,0.08204177,62782.0,62781.0,0.084653]
[1728824914335,0.08204177,62782.0,62781.0,0.083653]
[1728824914834,0.08204177,62782.0,62781.0,0.082653]
[1728824915031,0.08204177,62782.0,62781.0,0.088653]
[1728824915545,0.08304177,62782.0,62781.0,0.093653]
[1728824916041,0.08204177,62782.0,62781.0,0.088653]
[1728824917550,0.08204177,62782.0,62781.0,0.087653]
[1728824918050,0.08204177,62782.0,62781.0,0.080653]
[1728824918247,0.08204177,62782.0,62781.0,0.081653]
[1728824919949,0.08204177,62782.0,62781.0,0.26168317]
[1728824920245,0.08204177,62782.0,62781.0,0.26568317]
[1728824920851,0.08204177,62782.0,62781.0,0.26168317]
[1728824921338,0.08204177,62782.0,62781.0,0.002]
[1728824922750,0.079655,62780.0,62779.0,0.02936633]
[1728824922938,0.08204177,62782.0,62778.0,0.079657]
[1728824923143,0.079656,62779.0,62778.0,0.079657]
[1728824924149,0.079656,62779.0,62778.0,0.082657]
[1728824924752,0.079656,62779.0,62778.0,0.11132273]
[1728824924949,0.079656,62779.0,62778.0,0.10832273]
[1728824925248,0.079656,62779.0,62778.0,0.11132273]
[1728824926345,0.079656,62779.0,62778.0,0.11632273]
[1728824927052,0.079656,62779.0,62778.0,0.12671415]
[1728824927552,0.079656,62779.0,62778.0,0.12671441]
[1728824927750,0.079656,62779.0,62778.0,0.12671439]
[1728824930648,0.079656,62779.0,62778.0,0.22751071]
[1728824930947,0.079656,62779.0,62778.0,0.34465606]
[1728824931151,0.079656,62779.0,62778.0,0.34765784]
[1728824933145,0.079656,62779.0,62778.0,0.26800084]
[1728824933458,0.079656,62779.0,62778.0,0.26800247]
[1728824933947,0.079656,62779.0,62778.0,0.2576074]
[1728824934654,0.079656,62779.0,62778.0,0.25793663]
[1728824935857,0.079656,62779.0,62778.0,0.2292709]
[1728824936063,0.440456,62779.0,62778.0,0.20448405]
[1728824936950,0.440456,62779.0,62778.0,0.10894652]
[1728824937149,0.440456,62779.0,62778.0,0.20448405]
[1728824937452,0.440456,62779.0,62778.0,0.10594652]
[1728824937652,0.440456,62779.0,62778.0,0.10894652]
[1728824937848,0.440456,62779.0,62778.0,0.008]
[1728824943156,0.079656,62779.0,62778.0,0.008]
[1728824945767,0.079656,62779.0,62778.0,0.20442811]
[1728824946364,0.079656,62779.0,62778.0,0.10889058]
[1728824947364,0.079656,62779.0,62778.0,0.20442811]
[1728824947967,0.079656,62779.0,62778.0,0.10889058]
[1728824948861,0.079656,62779.0,62778.0,0.20442811]
[1728824949161,0.08204177,62782.0,62778.0,0.10889058]
[1728824949466,0.08204177,62782.0,62781.0,0.079653]
[1728824949658,0.08204177,62782.0,62781.0,0.18054358]
[1728824952266,0.08204177,62782.0,62781.0,0.27582282]
[1728824952472,0.08204177,62782.0,62781.0,0.18040229]
[1728824952660,0.08204177,62782.0,62781.0,0.18240229]
[1728824952972,0.08204177,62782.0,62781.0,0.081653]
[1728824953158,0.08204177,62782.0,62781.0,0.09206405]
[1728824953563,0.08204177,62782.0,62781.0,0.081653]
[1728824953768,0.08204177,62782.0,62781.0,0.09205667]
[1728824955370,0.08204177,62782.0,62781.0,0.081653]
[1728824955562,0.08204177,62782.0,62781.0,0.09205518]
[1728824956660,0.08204177,62782.0,62781.0,0.081653]
[1728824960864,0.08204177,62782.0,62781.0,0.18228618]
[1728824964080,0.08204177,62782.0,62781.0,0.10263318]
[1728824965176,0.08204177,62782.0,62781.0,0.18222193]
[1728824965365,0.08204177,62782.0,62781.0,0.08149981]
[1728824965768,0.44284177,62782.0,62781.0,0.08149981]
[1728824965962,0.44284177,62782.0,62781.0,0.002]
[1728824972889,0.440452,62782.0,62781.0,0.002]
[1728824982887,0.440452,62782.0,62781.0,0.10282974]
[1728824984192,0.440452,62782.0,62781.0,0.1823662]
[1728824984389,0.440452,62782.0,62781.0,0.002]
[1728824991196,0.079652,62782.0,62781.0,0.002]
[1728824991502,0.440452,62782.0,62781.0,0.002]
[1728824997898,0.48352194,62782.0,62781.0,0.002]
[1728825002508,0.440452,62782.0,62781.0,0.002]
[1728825002704,0.48356868,62782.0,62781.0,0.002]
[1728825005207,0.440452,62782.0,62781.0,0.002]
[1728825005408,0.48359456,62782.0,62781.0,0.002]
[1728825005903,0.440452,62782.0,62781.0,0.002]
[1728825010311,0.079652,62782.0,62781.0,0.002]
[1728825010510,0.440452,62782.0,62781.0,0.002]
[1728825012009,0.079652,62782.0,62781.0,0.002]
[1728825012214,0.440452,62782.0,62781.0,0.002]
[1728825012904,0.4835439,62782.0,62781.0,0.002]
[1728825014214,0.1227439,62782.0,62781.0,0.002]
[1728825014411,0.4835439,62782.0,62781.0,0.002]
[1728825015417,0.1227439,62782.0,62781.0,0.002]
[1728825015619,0.4835439,62782.0,62781.0,0.002]
[1728825016214,0.1227439,62782.0,62781.0,0.002]
[1728825016613,0.17273597,62782.0,62781.0,0.002]
[1728825016819,0.53350181,62782.0,62781.0,0.002]
[1728825017217,0.17270181,62782.0,62781.0,0.002]
[1728825017417,0.53350181,62782.0,62781.0,0.002]
[1728825018220,0.17270181,62782.0,62781.0,0.002]
[1728825018420,0.53350181,62782.0,62781.0,0.002]
[1728825019014,0.17270181,62782.0,62781.0,0.002]
[1728825019422,0.53350181,62782.0,62781.0,0.002]
[1728825021017,0.079664,62773.0,62770.0,0.0955126]
[1728825021318,0.079664,62773.0,62768.0,0.00238965]
[1728825021319,0.3608,62771.0,62768.0,0.09790225]
[1728825021520,0.079669,62769.0,62768.0,0.00238965]
[1728825021720,0.079669,62769.0,62768.0,0.11414474]
[1728825021924,0.079669,62769.0,62768.0,0.11414488]
[1728825022115,0.079669,62769.0,62768.0,0.11414115]
[1728825022315,0.079669,62769.0,62768.0,0.10369291]
[1728825022522,0.079669,62769.0,62768.0,0.11413975]
[1728825022721,0.079669,62769.0,62768.0,0.10369291]
[1728825023717,0.079669,62769.0,62768.0,0.11769291]
[1728825023918,0.079669,62769.0,62768.0,0.13069291]
[1728825024126,0.079669,62769.0,62768.0,0.21024237]
[1728825025326,0.079669,62769.0,62768.0,0.20785272]
[1728825026321,0.079669,62769.0,62768.0,0.10654946]
[1728825026722,0.079669,62769.0,62768.0,0.12777384]
[1728825027124,0.079669,62769.0,62768.0,0.20729958]
[1728825028135,0.079669,62769.0,62768.0,0.027]
[1728825029738,0.12284476,62769.0,62768.0,0.027]
[1728825030137,0.12282171,62769.0,62768.0,0.027]
[1728825031236,0.079669,62769.0,62768.0,0.027]
[1728825031543,0.48361339,62769.0,62768.0,0.027]
[1728825032140,0.440469,62769.0,62768.0,0.027]
[1728825033833,0.48359599,62769.0,62768.0,0.027]
[1728825035841,0.12279599,62769.0,62768.0,0.027]
[1728825036146,0.079669,62769.0,62768.0,0.027]
[1728825036346,0.440469,62769.0,62768.0,0.027]
[1728825039345,0.079669,62769.0,62768.0,0.027]
[1728825039546,0.440469,62769.0,62768.0,0.027]
[1728825041946,0.079669,62769.0,62768.0,0.027]
[1728825042239,0.440469,62769.0,62768.0,0.027]
[1728825043052,0.48275677,62769.0,62768.0,0.027]
[1728825044947,0.440469,62769.0,62768.0,0.027]
[1728825045147,0.48274857,62769.0,62768.0,0.027]
[1728825050050,0.12194857,62769.0,62768.0,0.027]
[1728825050350,0.48274857,62769.0,62768.0,0.027]
[1728825050554,0.12194857,62769.0,62768.0,0.027]
[1728825050850,0.48274857,62769.0,62768.0,0.027]
[1728825051054,0.440469,62769.0,62768.0,0.027]
[1728825058347,0.079669,62769.0,62768.0,0.027]
[1728825058760,0.440469,62769.0,62768.0,0.027]
[1728825061062,0.079669,62769.0,62768.0,0.027]
[1728825061264,0.440469,62769.0,62768.0,0.027]
[1728825061464,0.079669,62769.0,62768.0,0.027]
[1728825061768,0.440469,62769.0,62768.0,0.027]
[1728825062355,0.079669,62769.0,62768.0,0.027]
[1728825062555,0.440469,62769.0,62768.0,0.027]
[1728825065276,0.53089874,62769.0,62768.0,0.027]
[1728825066064,0.22542623,62769.0,62768.0,0.027]
[1728825066264,0.58622623,62769.0,62768.0,0.027]
[1728825066454,0.53089874,62769.0,62768.0,0.027]
[1728825066658,0.58622576,62769.0,62768.0,0.027]
[1728825067061,0.22542576,62769.0,62768.0,0.027]
[1728825067363,0.72898541,62769.0,62768.0,0.027]
[1728825069069,0.58622576,62769.0,62768.0,0.027]
[1728825069759,0.22542576,62769.0,62768.0,0.027]
[1728825069961,0.58622576,62769.0,62768.0,0.027]
[1728825070868,0.58622576,62769.0,62768.0,0.013184]
[1728825070869,0.74484759,62769.0,62768.0,0.013184]
[1728825071970,0.74456157,62769.0,62768.0,0.013184]
[1728825072471,0.38376157,62769.0,62768.0,0.013184]
[1728825072664,0.74456157,62769.0,62768.0,0.013184]
[1728825072973,0.58593974,62769.0,62768.0,0.013184]
[1728825073360,0.440469,62769.0,62768.0,0.013184]
[1728825078167,0.079669,62769.0,62768.0,0.013184]
[1728825078474,0.440469,62769.0,62768.0,0.013184]
[1728825078967,0.079669,62769.0,62768.0,0.013184]
[1728825079274,0.440469,62769.0,62768.0,0.013184]
[1728825082185,0.079669,62769.0,62768.0,0.013184]
[1728825082569,0.440469,62769.0,62768.0,0.013184]
[1728825084267,0.079669,62769.0,62768.0,0.013184]
[1728825084472,0.440469,62769.0,62768.0,0.013184]
[1728825085777,0.079669,62769.0,62768.0,0.013184]
[1728825085966,0.440469,62769.0,62768.0,0.013184]
[1728825086172,0.079669,62769.0,62768.0,0.013184]
[1728825086368,0.440469,62769.0,62768.0,0.013184]
[1728825088479,0.58541447,62769.0,62768.0,0.013184]
[1728825090085,0.74483578,62769.0,62768.0,0.00648095]
[1728825090273,0.58541447,62769.0,62768.0,0.00648095]
[1728825090975,0.22461447,62769.0,62768.0,0.00648095]
[1728825091175,0.58541447,62769.0,62768.0,0.00648095]
[1728825095385,0.440469,62769.0,62768.0,0.07022089]
[1728825096981,0.079669,62769.0,62768.0,0.07022089]
[1728825097176,0.440469,62769.0,62768.0,0.07022089]
[1728825098288,0.440469,62769.0,62768.0,0.00648095]
[1728825098582,0.440469,62769.0,62768.0,0.07023804]
[1728825103393,0.5302615,62769.0,62768.0,0.00648095]
[1728825104289,0.1694615,62769.0,62768.0,0.00648095]
[1728825104496,0.5302615,62769.0,62768.0,0.00648095]
[1728825105293,0.58519596,62769.0,62768.0,0.00648095]
[1728825107388,0.22439596,62769.0,62768.0,0.00648095]
[1728825107602,0.58519596,62769.0,62768.0,0.00648095]
[1728825110293,0.440469,62769.0,62768.0,0.07023804]
[1728825111501,0.079669,62769.0,62768.0,0.07023804]
[1728825111802,0.440469,62769.0,62768.0,0.07023804]
[1728825113499,0.079669,62769.0,62768.0,0.07023804]
[1728825113694,0.440469,62769.0,62768.0,0.07023804]
[1728825115898,0.079669,62769.0,62768.0,0.07023804]
[1728825116102,0.440469,62769.0,62768.0,0.07023804]
[1728825118392,0.079677,62762.0,62761.0,0.0322]
[1728825118594,0.12790036,62762.0,62761.0,0.0322]
[1728825118795,0.16943474,62762.0,62761.0,0.0322]
[1728825119593,0.16931708,62762.0,62761.0,0.0322]
[1728825120106,0.17031708,62762.0,62761.0,0.05169433]
[1728825120408,0.17031708,62762.0,62761.0,0.0412]
[1728825120602,0.199439,62762.0,62761.0,0.06471778]
[1728825120907,0.199439,62762.0,62761.0,0.06471779]
[1728825121302,0.199439,62762.0,62761.0,0.0542]
[1728825121603,0.199439,62762.0,62761.0,0.06471791]
[1728825122592,0.09164008,62762.0,62761.0,1.1322]
[1728825122803,0.09164008,62762.0,62761.0,1.211879]
[1728825123009,0.12756968,62768.0,62761.0,1.211879]
[1728825123205,0.14352458,62775.0,62765.0,0.3608]
[1728825123506,0.14352458,62779.0,62774.0,0.079662]
[1728825123808,0.14352458,62780.0,62775.0,0.0653]
[1728825124006,0.05206231,62779.0,62775.0,0.0653]
[1728825124305,0.079655,62780.0,62775.0,0.0653]
[1728825124493,0.079659,62777.0,62775.0,0.0653]
[1728825124699,0.079659,62777.0,62775.0,0.144961]
[1728825127106,0.080659,62777.0,62775.0,0.151961]
[1728825127604,0.001,62777.0,62776.0,0.55754]
[1728825127803,0.001,62777.0,62776.0,1.15754]
[1728825128204,0.001,62777.0,62776.0,1.22129709]
[1728825128409,0.001,62777.0,62776.0,1.15754]
[1728825129108,0.001,62777.0,62776.0,1.16354]
[1728825129712,0.001,62777.0,62776.0,1.16754]
[1728825130907,0.080658,62777.0,62776.0,1.16754]
[1728825131811,0.441458,62777.0,62776.0,0.01]
[1728825134201,0.080658,62777.0,62776.0,0.01]
[1728825140417,0.11998349,62777.0,62776.0,0.01]
[1728825148418,0.080658,62777.0,62776.0,0.01]
[1728825150518,0.080658,62777.0,62776.0,0.05762067]
[1728825150721,0.080658,62777.0,62776.0,0.01]
[1728825151519,0.080658,62777.0,62776.0,0.05762067]
[1728825151713,0.080658,62777.0,62776.0,0.01]
[1728825152021,0.080658,62777.0,62776.0,0.05769077]
[1728825152409,0.080658,62777.0,62776.0,0.01]
[1728825154615,0.080658,62777.0,62776.0,0.07375709]
[1728825154922,0.080658,62777.0,62776.0,0.01]
[1728825155316,0.080658,62777.0,62776.0,0.07375709]
[1728825155514,0.080658,62777.0,62776.0,0.01]
[1728825155515,0.20775924,62777.0,62776.0,0.01]
[1728825155720,0.29297419,62777.0,62776.0,0.01]
[1728825156825,0.16587295,62777.0,62776.0,0.01]
[1728825157422,0.20813252,62777.0,62776.0,0.01]
[1728825157823,0.16587295,62777.0,62776.0,0.01]
[1728825163528,0.080658,62777.0,62776.0,0.01]
[1728825168135,0.080658,62777.0,62775.0,0.06365478]